fUSD/lending_fUSD_20250225
["ID","MTS","AMOUNT","RATE_DAILY","PERIOD"]
[354480610,1740525069017,-1556.28,0.00047123,120]
[354480611,1740525069026,-643.17,0.00047123,120]
[354480612,1740525069035,-1681.18,0.00047123,120]
[354480613,1740525069045,-500.0,0.00047123,120]
[354480614,1740525069054,-500.0,0.00047123,120]
[354480615,1740525069063,-500.0,0.00047123,120]
[354480616,1740525069073,-762.11,0.00047123,120]
[354480617,1740525069082,-500.0,0.00047123,120]
[354480618,1740525069091,-1517.67,0.00047123,120]
[354480619,1740525069100,-500.0,0.00047123,120]
[354480620,1740525069109,-500.0,0.00047123,120]
[354480621,1740525069119,-500.0,0.00047123,120]
[354480622,1740525069128,-500.0,0.00047123,120]
[354480623,1740525069137,-500.0,0.00047123,120]
[354480624,1740525069147,-2000.0,0.00047123,30]
[354480625,1740525069157,-697.13,0.00047123,120]
[354480626,1740525069166,-500.0,0.00047123,120]
[354480627,1740525069176,-500.0,0.00047123,120]
[354480628,1740525069185,-500.0,0.00047123,120]
[354480629,1740525069195,-2246.49,0.00047123,120]
[354480630,1740525069204,-676.45,0.00047123,120]
[354480631,1740525069213,-500.0,0.00047123,120]
[354480632,1740525069222,-350.13106052,0.00047123,120]
[354480633,1740525069232,-2485.58,0.00047123,120]
[354480634,1740525069241,-500.0,0.00047123,120]
[354480635,1740525069250,-500.0,0.00047123,120]
[354480636,1740525069259,-757.3,0.00047123,120]
[354480637,1740525069269,-500.0,0.00047123,120]
[354480638,1740525069278,-616.34,0.00047123,120]
[354480639,1740525069288,-199.823275,0.00047123,120]
[354480640,1740525069297,-851.04,0.00047123,120]
[354480641,1740525069306,-582.51598417,0.00047123,120]
[354480642,1740525069315,-796.54,0.00047123,120]
[354480643,1740525069324,-1896.83,0.00047123,120]
[354480644,1740525069333,-439.99034911,0.00047123,120]
[354480645,1740525069343,-500.0,0.00047123,120]
[354480646,1740525069352,-1503.74,0.00047123,120]
[354480647,1740525069361,-544.12,0.00047123,120]
[354480648,1740525069370,-804.43,0.00047123,120]
[354480649,1740525069379,-151.0,0.00047123,14]
[354480650,1740525069389,-500.0,0.00047123,120]
[354480651,1740525069399,-151.0,0.00047123,14]
[354480652,1740525069408,-1670.65,0.00047123,120]
[354480653,1740525069418,-2523.18,0.00047123,120]
[354480654,1740525069427,-961.47,0.00047123,120]
[354480655,1740525069436,-255.24740948,0.00047123,120]
[354480656,1740525069445,-500.0,0.00047123,120]
[354480657,1740525069454,-2386.5,0.00047123,120]
[354480658,1740525069467,-500.0,0.00047123,120]
[354480659,1740525069476,-500.0,0.00047123,120]
[354480660,1740525069486,-1399.8,0.00047123,120]
[354480661,1740525069495,-500.0,0.00047123,120]
[354480662,1740525069505,-1298.67,0.00047123,120]
[354480663,1740525069515,-1273.31,0.00047123,120]
[354480664,1740525069524,-545.82,0.00047123,120]
[354480665,1740525069533,-1406.97,0.00047123,120]
[354480666,1740525069542,-880.77,0.00047123,120]
[354480667,1740525069554,-810.33,0.00047123,120]
[354480668,1740525069563,-1580.97,0.00047123,120]
[354480669,1740525069572,-1310.98,0.00047123,120]
[354480670,1740525069581,-151.0,0.00047123,14]
[354480671,1740525069591,-1077.25,0.00047123,120]
[354480672,1740525069601,-500.0,0.00047123,120]
[354480673,1740525069611,-151.0,0.00047123,14]
[354480674,1740525069620,-151.416641,0.00047123,14]
[354480675,1740525069629,-505.45,0.00047123,120]
[354480676,1740525069639,-151.416641,0.00047123,14]
[354480677,1740525069650,-500.0,0.00047123,120]
[354480678,1740525069659,-500.0,0.00047123,120]
[354480679,1740525069668,-904.45,0.00047123,120]
[354480680,1740525069678,-2988.53,0.00047123,120]
[354480681,1740525069687,-151.416641,0.00047123,14]
[354480682,1740525069695,-500.0,0.00047123,120]
[354480683,1740525069704,-151.416641,0.00047123,14]
[354480684,1740525069714,-500.0,0.00047123,120]
[354480685,1740525069724,-500.0,0.00047123,120]
[354480686,1740525069733,-500.0,0.00047123,120]
[354480687,1740525069742,-3500.0,0.00047123,120]
[354480688,1740525069751,-1908.67,0.00047123,120]
[354480689,1740525069761,-1789.03,0.00047123,120]
[354480690,1740525069770,-500.0,0.00047123,120]
[354480691,1740525069780,-3346.82,0.00047123,120]
[354480692,1740525069789,-792.56,0.00047123,120]
[354480693,1740525069798,-572.46,0.00047123,120]
[354480694,1740525069807,-500.0,0.00047123,120]
[354480695,1740525069817,-500.0,0.00047123,120]
[354480696,1740525069825,-6205.29,0.00047123,120]
[354480697,1740525069834,-530.28,0.00047123,120]
[354480698,1740525069843,-552.71,0.00047123,120]
[354480699,1740525069852,-1610.37,0.00047123,120]
[354480700,1740525069862,-1334.76,0.00047123,120]
[354480701,1740525069871,-2913.23,0.00047123,120]
[354480702,1740525069880,-516.07669873,0.00047123,120]
[354480703,1740525069890,-500.74,0.00047123,120]
[354480704,1740525069900,-1604.53,0.00047123,120]
[354480705,1740525069908,-1476.1,0.00047123,120]
[354480706,1740525069917,-500.0,0.00047123,120]
[354480707,1740525069926,-500.0,0.00047123,120]
[354480708,1740525069935,-1909.28,0.00047123,120]
[354480709,1740525069945,-1883.07,0.00047123,120]
[354480710,1740525069954,-6757.97,0.00047123,120]
[354480711,1740525069963,-810.97,0.00047123,120]
[354480712,1740525069972,-694.89,0.00047123,120]
[354480713,1740525069982,-500.0,0.00047123,120]
[354480714,1740525069991,-500.0,0.00047123,120]
[354480715,1740525070000,-500.0,0.00047123,120]
[354480716,1740525070009,-500.0,0.00047123,120]
[354480717,1740525070018,-2755.45,0.00047123,120]
[354480718,1740525070027,-1383.79,0.00047123,120]
[354480719,1740525070037,-500.0,0.00047123,120]
[354480720,1740525070047,-500.0,0.00047123,120]
[354480721,1740525070057,-755.03,0.00047123,120]
[354480722,1740525070066,-500.0,0.00047123,120]
[354480723,1740525070075,-1090.86,0.00047123,120]
[354480724,1740525070085,-2516.39,0.00047123,120]
[354480725,1740525070094,-760.33,0.00047123,120]
[354480726,1740525070104,-2745.94,0.00047123,120]
[354480727,1740525070113,-151.0,0.00047123,14]
[354480728,1740525070122,-2251.05,0.00047123,120]
[354480729,1740525070131,-500.0,0.00047123,7]
[354480730,1740525070140,-540.66,0.00047123,120]
[354480731,1740525070151,-151.0,0.00047123,14]
[354480732,1740525070160,-2508.96,0.00047123,120]
[354480733,1740525070169,-500.0,0.00047123,120]
[354480734,1740525070179,-400.0,0.00047123,14]
[354480735,1740525070188,-400.0,0.00047123,14]
[354480736,1740525070197,-1188.93,0.00047123,120]
[354480737,1740525070207,-1762.88,0.00047123,120]
[354480738,1740525070217,-500.0,0.00047123,120]
[354480739,1740525070226,-542.77,0.00047123,120]
[354480740,1740525070236,-1574.95,0.00047123,120]
[354480741,1740525070245,-500.0,0.00047123,120]
[354480742,1740525070255,-2249.98,0.00047123,120]
[354480743,1740525070265,-720.74,0.00047123,120]
[354480744,1740525070275,-400.0,0.00047123,14]
[354480745,1740525070285,-400.0,0.00047123,14]
[354480746,1740525070294,-500.0,0.00047123,120]
[354480747,1740525070304,-500.0,0.00047123,120]
[354480748,1740525070314,-2314.69,0.00047123,120]
[354480749,1740525070324,-1042.99,0.00047123,120]
[354480750,1740525070333,-886.17,0.00047123,120]
[354480751,1740525070343,-732.45,0.00047123,120]
[354480752,1740525070353,-500.0,0.00047123,120]
[354480753,1740525070362,-500.0,0.00047123,120]
[354480754,1740525070372,-1109.18,0.00047123,120]
[354480755,1740525070381,-2382.41,0.00047123,120]
[354480756,1740525070392,-3544.28,0.00047123,120]
[354480757,1740525070402,-500.0,0.00047123,120]
[354480758,1740525070411,-500.0,0.00047123,120]
[354480759,1740525070426,-500.0,0.00047123,120]
[354480760,1740525070435,-2440.16,0.00047123,120]
[354480761,1740525070445,-1797.32,0.00047123,120]
[354480762,1740525070454,-3035.46,0.00047123,120]
[354480763,1740525070465,-500.0,0.00047123,120]
[354480764,1740525070477,-500.0,0.00047123,120]
[354480765,1740525070487,-500.0,0.00047123,120]
[354480766,1740525070497,-2751.58,0.00047123,120]
[354480767,1740525070507,-500.0,0.00047123,120]
[354480768,1740525070520,-620.05,0.00047123,40]
[354480769,1740525070531,-1827.79,0.00047123,120]
[354480770,1740525070540,-500.0,0.00047123,120]
[354480771,1740525070551,-1260.14,0.00047123,120]
[354480772,1740525070561,-2536.33,0.00047123,120]
[354480773,1740525070571,-500.0,0.00047123,120]
[354480774,1740525070581,-672.65,0.00047123,120]
[354480775,1740525070591,-2395.14,0.00047123,120]
[354480776,1740525070600,-526.97844038,0.00047123,120]
[354480777,1740525070611,-2506.44,0.00047123,120]
[354480778,1740525070620,-743.51,0.00047123,120]
[354480779,1740525070630,-2194.84,0.00047123,120]
[354480780,1740525070639,-500.0,0.00047123,120]
[354480781,1740525070649,-500.0,0.00047123,120]
[354480782,1740525070659,-500.0,0.00047123,2]
[354480783,1740525070668,-1563.81,0.00047123,120]
[354480784,1740525070678,-589.49,0.00047123,120]
[354480785,1740525070687,-724.08,0.00047123,120]
[354480786,1740525070697,-5430.09,0.00047123,120]
[354480787,1740525070706,-220.92365975,0.00047123,120]
[354480788,1740525070716,-2655.98,0.00047123,120]
[354480789,1740525070726,-1400.39,0.00047123,120]
[354480790,1740525070735,-500.0,0.00047123,120]
[354480791,1740525070745,-500.0,0.00047123,120]
[354480792,1740525070754,-2796.49,0.00047123,120]
[354480793,1740525070764,-2566.46,0.00047123,120]
[354480794,1740525070774,-500.0,0.00047123,120]
[354480795,1740525070784,-500.0,0.00047123,120]
[354480796,1740525070794,-533.75,0.00047123,120]
[354480797,1740525070803,-500.0,0.00047123,120]
[354480798,1740525070814,-1640.61,0.00047123,120]
[354480799,1740525070824,-1861.39,0.00047123,120]
[354480800,1740525070834,-151.0,0.00047123,14]
[354480801,1740525070843,-500.0,0.00047123,120]
[354480802,1740525070853,-151.0,0.00047123,14]
[354480803,1740525070863,-1030.17,0.00047123,120]
[354480804,1740525070872,-1972.41,0.00047123,120]
[354480805,1740525070882,-521.26,0.00047123,120]
[354480806,1740525070892,-1437.56,0.00047123,120]
[354480807,1740525070903,-1655.29,0.00047123,120]
[354480808,1740525070915,-1756.09,0.00047123,120]
[354480809,1740525070926,-840.32,0.00047123,120]
[354480810,1740525070938,-3628.74,0.00047123,120]
[354480811,1740525070949,-151.0,0.00047123,14]
[354480812,1740525070960,-2499.17,0.00047123,120]
[354480813,1740525070971,-151.0,0.00047123,14]
[354480814,1740525070981,-500.0,0.00047123,120]
[354480815,1740525070991,-3926.4,0.00047123,120]
[354480816,1740525071001,-151.0,0.00047123,14]
[354480817,1740525071011,-151.0,0.00047123,14]
[354480818,1740525071020,-1163.02,0.00047123,120]
[354480819,1740525071030,-1291.9,0.00047123,120]
[354480820,1740525071040,-500.0,0.00047123,120]
[354480821,1740525071049,-3056.11,0.00047123,120]
[354480822,1740525071059,-500.0,0.00047123,120]
[354480823,1740525071069,-771.6,0.00047123,120]
[354480824,1740525071079,-500.0,0.00047123,120]
[354480825,1740525071089,-1441.32,0.00047123,120]
[354480826,1740525071099,-4678.34,0.00047123,120]
[354480827,1740525071109,-500.0,0.00047123,120]
[354480828,1740525071119,-2952.33,0.00047123,120]
[354480829,1740525071128,-2012.1,0.00047123,120]
[354480830,1740525071137,-501.69,0.00047123,120]
[354480831,1740525071147,-784.89,0.00047123,120]
[354480832,1740525071157,-500.0,0.00047123,120]
[354480833,1740525071166,-969.7,0.00047123,120]
[354480834,1740525071176,-10455.7,0.00047123,120]
[354480835,1740525071186,-500.0,0.00047123,120]
[354480836,1740525071196,-500.0,0.00047123,120]
[354480837,1740525071208,-1512.42,0.00047123,120]
[354480838,1740525071217,-2828.88,0.00047123,120]
[354480839,1740525071227,-171.254786,0.00047123,14]
[354480840,1740525071238,-500.0,0.00047123,120]
[354480841,1740525071249,-171.254786,0.00047123,14]
[354480842,1740525071258,-406.81109651,0.00047123,120]
[354480843,1740525071268,-912.73,0.00047123,120]
[354480844,1740525071278,-2241.97,0.00047123,120]
[354480845,1740525071287,-500.0,0.00047123,120]
[354480846,1740525071297,-3595.95,0.00047123,120]
[354480847,1740525071307,-935.01,0.00047123,120]
[354480848,1740525071316,-3469.63,0.00047123,120]
[354480849,1740525071326,-602.99,0.00047123,120]
[354480850,1740525071336,-171.254786,0.00047123,14]
[354480851,1740525071346,-171.254786,0.00047123,14]
[354480852,1740525071356,-500.0,0.00047123,120]
[354480853,1740525071365,-2694.08,0.00047123,120]
[354480854,1740525071375,-1514.82,0.00047123,120]
[354480855,1740525071385,-500.0,0.00047123,120]
[354480856,1740525071395,-500.0,0.00047123,120]
[354480857,1740525071405,-2106.7,0.00047123,120]
[354480858,1740525071414,-500.0,0.00047123,120]
[354480859,1740525071424,-151.0,0.00047123,14]
[354480860,1740525071434,-500.0,0.00047123,120]
[354480861,1740525071443,-812.71,0.00047123,120]
[354480862,1740525071453,-1131.11,0.00047123,120]
[354480863,1740525071464,-1037.66,0.00047123,120]
[354480864,1740525071476,-500.0,0.00047123,120]
[354480865,1740525071486,-4297.03,0.00047123,120]
[354480866,1740525071496,-500.0,0.00047123,120]
[354480867,1740525071507,-966.67,0.00047123,120]
[354480868,1740525071517,-810.49,0.00047123,120]
[354480869,1740525071526,-4138.0,0.00047123,120]
[354480870,1740525071536,-476.969324,0.00047123,14]
[354480871,1740525071547,-500.0,0.00047123,120]
[354480872,1740525071558,-476.969324,0.00047123,14]
[354480873,1740525071568,-5544.4,0.00047123,120]
[354480874,1740525071578,-500.0,0.00047123,120]
[354480875,1740525071588,-476.969324,0.00047123,14]
[354480876,1740525071599,-476.969324,0.00047123,14]
[354480877,1740525071609,-2643.13,0.00047123,120]
[354480878,1740525071620,-2618.07264,0.00047123,14]
[354480879,1740525071631,-2255.61,0.00047123,120]
[354480880,1740525071641,-2618.07264,0.00047123,14]
[354480881,1740525071652,-4692.46,0.00047123,120]
[354480882,1740525071662,-1284.89,0.00047123,120]
[354480883,1740525071672,-500.0,0.00047123,120]
[354480884,1740525071682,-1086.9,0.00047123,120]
[354480885,1740525071692,-500.0,0.00047123,120]
[354480886,1740525071702,-2618.07264,0.00047123,14]
[354480887,1740525071712,-2618.07264,0.00047123,14]
[354480888,1740525071722,-1694.06,0.00047123,120]
[354480889,1740525071732,-303.441054,0.00047123,14]
[354480890,1740525071742,-500.0,0.00047123,120]
[354480891,1740525071753,-3540.31,0.00047123,120]
[354480892,1740525071763,-303.441054,0.00047123,14]
[354480893,1740525071773,-3276.32,0.00047123,120]
[354480894,1740525071783,-907.62,0.00047123,120]
[354480895,1740525071793,-4609.63,0.00047123,120]
[354480896,1740525071803,-1727.68,0.00047123,120]
[354480897,1740525071814,-303.441054,0.00047123,14]
[354480898,1740525071825,-500.0,0.00047123,120]
[354480899,1740525071835,-500.0,0.00047123,120]
[354480900,1740525071846,-303.441054,0.00047123,14]
[354480901,1740525071855,-500.0,0.00047123,120]
[354480902,1740525071865,-1739.16,0.00047123,120]
[354480903,1740525071875,-500.0,0.00047123,120]
[354480904,1740525071885,-4245.72,0.00047123,120]
[354480905,1740525071895,-511.75,0.00047123,120]
[354480906,1740525071907,-3011.11,0.00047123,120]
[354480907,1740525071917,-500.0,0.00047123,120]
[354480908,1740525071926,-1366.37,0.00047123,120]
[354480909,1740525071936,-2072.49,0.00047123,120]
[354480910,1740525071946,-1124.65,0.00047123,120]
[354480911,1740525071956,-500.0,0.00047123,120]
[354480912,1740525071966,-508.4,0.00047123,120]
[354480913,1740525071975,-2269.51,0.00047123,120]
[354480914,1740525071985,-500.0,0.00047123,120]
[354480915,1740525071994,-500.0,0.00047123,120]
[354480916,1740525072004,-500.0,0.00047123,120]
[354480917,1740525072014,-3313.32,0.00047123,120]
[354480918,1740525072024,-2235.99,0.00047123,120]
[354480919,1740525072034,-586.5,0.00047123,120]
[354480920,1740525072044,-4350.19,0.00047123,120]
[354480921,1740525072054,-500.0,0.00047123,120]
[354480922,1740525072064,-500.0,0.00047123,120]
[354480923,1740525072074,-500.0,0.00047123,120]
[354480924,1740525072088,-701.46,0.00047123,120]
[354480925,1740525072100,-974.01,0.00047123,120]
[354480926,1740525072110,-3045.42,0.00047123,120]
[354480927,1740525072119,-824.89,0.00047123,120]
[354480928,1740525072129,-2130.47,0.00047123,120]
[354480929,1740525072139,-791.74,0.00047123,120]
[354480930,1740525072151,-500.0,0.00047123,120]
[354480931,1740525072161,-4248.82,0.00047123,120]
[354480932,1740525072171,-151.0,0.00047123,14]
[354480933,1740525072181,-151.0,0.00047123,14]
[354480934,1740525072192,-866.99,0.00047123,120]
[354480935,1740525072202,-500.0,0.00047123,120]
[354480936,1740525072212,-3347.83,0.00047123,120]
[354480937,1740525072222,-500.0,0.00047123,120]
[354480938,1740525072232,-500.0,0.00047123,120]
[354480939,1740525072242,-500.0,0.00047123,120]
[354480940,1740525072251,-3209.63,0.00047123,120]
[354480941,1740525072261,-152.529607,0.00047123,14]
[354480942,1740525072271,-2354.51,0.00047123,120]
[354480943,1740525072280,-1776.94,0.00047123,120]
[354480944,1740525072290,-2055.66,0.00047123,20]
[354480945,1740525072299,-943.2,0.00047123,120]
[354480946,1740525072310,-1673.61,0.00047123,120]
[354480947,1740525072319,-1511.4,0.00047123,120]
[354480948,1740525072330,-4065.81,0.00047123,120]
[354480949,1740525072340,-1252.21,0.00047123,7]
[354480950,1740525072350,-4673.22,0.00047123,120]
[354480951,1740525072360,-4464.06,0.00047123,120]
[354480952,1740525072370,-500.0,0.00047123,120]
[354480953,1740525072380,-5401.71,0.00047123,120]
[354480954,1740525072390,-151.0,0.00047123,14]
[354480955,1740525072402,-716.34,0.00047123,120]
[354480956,1740525072660,-2071.48,0.00047123,120]
[354480957,1740525072676,-1740.52,0.00047123,120]
[354480958,1740525072686,-526.494328,0.00047123,120]
[354480959,1740525072696,-3081.17,0.00047123,120]
[354480960,1740525072706,-500.0,0.00047123,120]
[354480961,1740525072723,-1998.56,0.00047123,120]
[354480962,1740525072768,-1249.09,0.00047123,120]
[354480963,1740525072867,-500.0,0.00047123,120]
[354480964,1740525072970,-5678.79,0.00047123,120]
[354480965,1740525073080,-5505.95,0.00047123,120]
[354480966,1740525073176,-758.94,0.00047123,120]
[354480967,1740525073301,-1325.19,0.00047123,120]
[354480968,1740525073391,-500.0,0.00047123,120]
[354480969,1740525073533,-500.0,0.00047123,120]
[354480970,1740525073659,-500.0,0.00047123,120]
[354480971,1740525073763,-500.0,0.00047123,120]
[354480972,1740525073875,-4287.38,0.00047123,120]
[354480973,1740525073964,-500.0,0.00047123,120]
[354480974,1740525073978,-651.930839,0.00047123,14]
[354480975,1740525073988,-500.0,0.00047123,120]
[354480976,1740525073998,-2679.91,0.00047123,120]
[354480977,1740525074007,-1690.61,0.00047123,120]
[354480978,1740525074017,-949.88,0.00047123,120]
[354480979,1740525074026,-3486.01,0.00047123,120]
[354480980,1740525074036,-616.55,0.00047123,120]
[354480981,1740525074045,-6857.38,0.00047123,100]
[354480982,1740525074055,-651.930839,0.00047123,14]
[354480983,1740525074064,-500.0,0.00047123,120]
[354480984,1740525074074,-2924.21,0.00047123,120]
[354480985,1740525074083,-1294.3,0.00047123,120]
[354480986,1740525074092,-500.0,0.00047123,120]
[354480987,1740525074101,-500.0,0.00047123,120]
[354480988,1740525074111,-500.0,0.00047123,120]
[354480989,1740525074120,-2360.73,0.00047123,120]
[354480990,1740525074130,-500.0,0.00047123,120]
[354480991,1740525074139,-2926.64,0.00047123,120]
[354480992,1740525074148,-1480.06918,0.00047123,14]
[354480993,1740525074159,-3837.66,0.00047123,120]
[354480994,1740525074168,-1480.06918,0.00047123,14]
[354480995,1740525074177,-500.0,0.00047123,120]
[354480996,1740525074187,-500.0,0.00047123,120]
[354480997,1740525074197,-3338.22,0.00047123,120]
[354480998,1740525074207,-2471.68,0.00047123,120]
[354480999,1740525074217,-1480.06918,0.00047123,14]
[354481000,1740525074227,-1480.06918,0.00047123,14]
[354481001,1740525074237,-2534.39,0.00047123,120]
[354481002,1740525074246,-2238.67,0.00047123,120]
[354481003,1740525074257,-599.74,0.00047123,120]
[354481004,1740525074266,-3859.39,0.00047123,120]
[354481005,1740525074277,-1271.43,0.00047123,120]
[354481006,1740525074286,-500.0,0.00047123,120]
[354481007,1740525074296,-151.0,0.00047123,14]
[354481008,1740525074306,-578.57,0.00047123,120]
[354481009,1740525074316,-543.12,0.00047123,120]
[354481010,1740525074327,-2168.92,0.00047123,120]
[354481011,1740525074337,-1029.57,0.00047123,120]
[354481012,1740525074347,-500.0,0.00047123,120]
[354481013,1740525074357,-4757.36,0.00047123,120]
[354481014,1740525074367,-4932.97,0.00047123,120]
[354481015,1740525074377,-527.46777798,0.00047123,120]
[354481016,1740525074388,-571.93,0.00047123,120]
[354481017,1740525074397,-1891.34,0.00047123,120]
[354481018,1740525074410,-4426.95,0.00047123,120]
[354481019,1740525074420,-3386.05,0.00047123,120]
[354481020,1740525074430,-151.0,0.00047123,14]
[354481021,1740525074440,-7186.36,0.00047123,120]
[354481022,1740525074449,-500.0,0.00047123,120]
[354481023,1740525074459,-1212.27,0.00047123,120]
[354481024,1740525074474,-500.0,0.00047123,120]
[354481025,1740525074484,-2304.51,0.00047123,120]
[354481026,1740525074493,-500.0,0.00047123,120]
[354481027,1740525074505,-1350.18,0.00047123,120]
[354481028,1740525074515,-5154.97,0.00047123,120]
[354481029,1740525074526,-1509.66,0.00047123,120]
[354481030,1740525074535,-4396.02,0.00047123,120]
[354481031,1740525074545,-6157.61,0.00047123,120]
[354481032,1740525074558,-500.0,0.00047123,120]
[354481033,1740525074568,-3968.48,0.00047123,120]
[354481034,1740525074578,-500.0,0.00047123,120]
[354481035,1740525074588,-802.19,0.00047123,120]
[354481036,1740525074599,-500.0,0.00047123,120]
[354481037,1740525074609,-2679.19,0.00047123,120]
[354481038,1740525074618,-5051.29,0.00047123,120]
[354481039,1740525074628,-729.76,0.00047123,120]
[354481040,1740525074639,-500.0,0.00047123,120]
[354481041,1740525074649,-500.0,0.00047123,120]
[354481042,1740525074660,-996.09,0.00047123,120]
[354481043,1740525074671,-500.0,0.00047123,120]
[354481044,1740525074681,-500.0,0.00047123,120]
[354481045,1740525074691,-2217.77,0.00047123,120]
[354481046,1740525074700,-500.0,0.00047123,120]
[354481047,1740525074710,-500.0,0.00047123,120]
[354481048,1740525074719,-2550.41,0.00047123,120]
[354481049,1740525074730,-500.0,0.00047123,120]
[354481050,1740525074742,-500.0,0.00047123,120]
[354481051,1740525074756,-500.0,0.00047123,120]
[354481052,1740525074765,-1627.04,0.00047123,120]
[354481053,1740525074775,-3259.58,0.00047123,120]
[354481054,1740525074784,-2385.56,0.00047123,120]
[354481055,1740525074794,-892.47,0.00047123,120]
[354481056,1740525074804,-1311.03,0.00047123,7]
[354481057,1740525074813,-300.0,0.00047173,2]
[354481058,1740525074823,-213.26282212,0.00047202,15]
[354481059,1740525074832,-245.5691718,0.00047297,120]
[354481060,1740525074842,-213.26282212,0.00047325,15]
[354481061,1740525074852,-500.0,0.00047396,120]
[354481062,1740525074862,-1644.23,0.00047396,120]
[354481063,1740525074872,-2016.01,0.00047396,120]
[354481064,1740525074882,-2016.01,0.00047396,120]
[354481065,1740525074892,-2016.01,0.00047396,120]
[354481066,1740525074906,-4771.23,0.00047396,120]
[354481067,1740525074918,-1043.3,0.00047396,120]
[354481068,1740525074931,-5292.54,0.00047396,120]
[354481069,1740525074942,-151.0,0.00047396,14]
[354481070,1740525074954,-500.0,0.00047397,120]
[354481071,1740525074965,-500.0,0.00047397,120]
[354481072,1740525074977,-218.63833185,0.00047397,120]
[354481073,1740525074988,-500.0,0.00047397,120]
[354481074,1740525074999,-500.0,0.00047397,120]
[354481075,1740525075011,-359.82622375,0.00047397,120]
[354481076,1740525075022,-500.0,0.00047397,120]
[354481077,1740525075033,-433.93978593,0.00047397,120]
[354481078,1740525075043,-644.56065599,0.00047397,120]
[354481079,1740525075053,-500.0,0.00047397,16]
[354481080,1740525075064,-500.0,0.00047397,120]
[354481081,1740525075074,-313.30347683,0.00047397,120]
[354481082,1740525075086,-167.89953646,0.00047397,120]
[354481083,1740525075096,-737.51,0.00047397,120]
[354481084,1740525075107,-535.73,0.00047397,120]
[354481085,1740525075118,-567.94,0.00047397,120]
[354481086,1740525075128,-500.0,0.00047397,120]
[354481087,1740525075139,-500.0,0.00047397,120]
[354481088,1740525075149,-500.0,0.00047397,120]
[354481089,1740525075162,-1055.43,0.00047397,120]
[354481090,1740525075173,-643.35,0.00047397,120]
[354481091,1740525075183,-500.0,0.00047397,120]
[354481092,1740525075192,-749.2,0.00047397,120]
[354481093,1740525075203,-500.0,0.00047397,120]
[354481094,1740525075213,-295.27431113,0.00047397,120]
[354481095,1740525075223,-500.0,0.00047397,120]
[354481096,1740525075234,-500.0,0.00047397,120]
[354481097,1740525075244,-500.0,0.00047397,120]
[354481098,1740525075254,-766.64,0.00047397,120]
[354481099,1740525075265,-500.0,0.00047397,120]
[354481100,1740525075282,-500.0,0.00047397,120]
[354481101,1740525075298,-500.0,0.00047397,120]
[354481102,1740525075309,-500.0,0.00047397,120]
[354481103,1740525075320,-500.0,0.00047397,120]
[354481104,1740525075332,-1132.0,0.00047397,120]
[354481105,1740525075342,-500.0,0.00047397,120]
[354481106,1740525075352,-500.0,0.00047397,120]
[354481107,1740525075363,-1008.59,0.00047397,120]
[354481108,1740525075373,-500.0,0.00047397,120]
[354481109,1740525075384,-500.0,0.00047397,120]